lending/lending_fUSD_20260211
["ID","MTS","AMOUNT","RATE_DAILY","PERIOD"]
[405096712,1770798632142,-10000.0,0.000173,2]
[405096713,1770798632152,-3599.96776258,0.00017363,2]
[405096714,1770798632163,-188.27841096,0.00017363,2]
[405096715,1770798632173,-151.0,0.0001737,2]
[405096716,1770798632184,-178.59723947,0.00017372,2]
[405096717,1770798632194,-449.91083181,0.00017372,2]
[405096718,1770798632205,-221.69148029,0.00017372,2]
[405096720,1770798632218,-500.0,0.00017372,2]
[405096721,1770798632230,-500.0,0.00017372,2]
[405096722,1770798632241,-154.12104511,0.00017372,2]
[405096723,1770798632252,-500.0,0.00017372,2]
[405096724,1770798632262,-155.1840362,0.00017372,2]
[405096725,1770798632273,-214011.94336697,0.00017373,2]
[405096726,1770798632290,-1368.4992,0.00017373,2]
[405096733,1770798637700,-4604.48971033,0.00017373,2]
[405096734,1770798637727,-534.65511844,0.00017373,2]
[405096735,1770798637827,-634.59901641,0.00017373,2]
[405096740,1770798640184,-224316.94873447,0.00017373,2]
[405096746,1770798643904,-4837.85063254,0.00017373,2]
[405096747,1770798645350,-14961.43941739,0.00017373,2]
[405096763,1770798645615,-712.84,0.00017373,2]
[405096772,1770798678383,5000.0,0.00035616,120]
[405096775,1770798752361,2292.0,0.00035616,120]
[405096777,1770798785539,454.955,0.00035616,120]
[405096778,1770798818731,11487.0,0.00035439,120]
[405096786,1770799462145,747.231,0.00032,120]
[405096821,1770799831706,-2548.73865149,0.00015941,2]
[405096823,1770799831719,-297.04785907,0.00015941,2]
[405096824,1770799831730,-1004.13733605,0.00015941,2]
[405096825,1770799831760,-1023.31953828,0.00015941,2]
[405096826,1770799831814,-3856.72283311,0.00015941,2]
[405096827,1770799831825,-322.46,0.00016022,2]
[405096828,1770799831835,-260.38279082,0.00016074,2]
[405096829,1770799831846,-239.61720918,0.00016074,2]
[405096830,1770799831856,-174.14,0.00016154,2]
[405096831,1770799831865,-2219.20659262,0.00016286,2]
[405096832,1770799831876,-4019.53558651,0.00016286,2]
[405096833,1770799831895,-397.84647269,0.00016286,2]
[405096834,1770799831907,-535.85134818,0.00016286,2]
[405096835,1770799831916,-1000.0,0.00016329,2]
[405096836,1770799831925,-142.24303261,0.00016491,2]
[405096837,1770799831936,-57.75696739,0.00016491,2]
[405096838,1770799831946,-329.35943257,0.00016491,2]
[405096839,1770799831957,-1490.00174026,0.00016491,2]
[405096840,1770799831967,-1408.96322044,0.00016582,2]
[405096842,1770799831981,-1091.03677956,0.00016582,2]
[405096844,1770799831994,-577.67253323,0.00016582,2]
[405096846,1770799832003,-162.01657734,0.00016582,2]
[405096848,1770799832013,-689.08465205,0.00016582,2]
[405096850,1770799832022,-202.43935989,0.00016582,2]
[405096852,1770799832033,-1285.05172272,0.00016582,2]
[405096854,1770799832043,-209.13309471,0.00016672,2]
[405096856,1770799832054,-155.20645213,0.00016679,2]
[405096858,1770799832064,-314.93758226,0.00016681,2]
[405096860,1770799832073,-500.0,0.00016681,2]
[405096862,1770799832083,-157.88473158,0.00016681,2]
[405096864,1770799832092,-500.0,0.00016681,2]
[405096865,1770799832101,-358.32105063,0.00016681,2]
[405096866,1770799832111,-500.0,0.00016681,2]
[405096867,1770799832120,-500.0,0.00016681,2]
[405096868,1770799832130,-500.0,0.00016681,2]
[405096869,1770799832139,-500.0,0.00016681,2]
[405096870,1770799832148,-475.50054841,0.00016681,2]
[405096871,1770799832157,-500.0,0.00016681,2]
[405096872,1770799832166,-500.0,0.00016681,2]
[405096873,1770799832175,-500.0,0.00016681,2]
[405096874,1770799832185,-500.0,0.00016681,2]
[405096875,1770799832194,-639037.09862432,0.00016682,2]
[405096876,1770799832205,-1254.41808677,0.00016682,2]
[405096880,1770799837819,-547.38603,0.00016582,2]
[405097035,1770799839810,-1820.89468532,0.00016582,2]
[405097041,1770799840022,-1370.0234055,0.00016582,2]
[405097042,1770799840033,-104165.39963855,0.00016682,2]
[405097043,1770799840045,-29819.32642133,0.00016682,2]
[405097044,1770799840180,-813662.27963526,0.00016682,2]
[405097045,1770799840192,-3554.411,0.00016682,2]
[405097060,1770799845745,-116826.28965558,0.00016682,2]
[405097061,1770799845798,-1364.94,0.00016682,2]
[405097062,1770799845810,-42131.8407588,0.00016682,2]
[405097063,1770799845822,-1097.48415236,0.00016682,2]
[405097069,1770799917924,3749.4,0.00035616,120]
[405097083,1770800705293,832.0,0.00035616,120]
[405097084,1770800709529,832.0,0.00035616,120]
[405097086,1770800732844,247.2,8.857e-05,2]
[405097087,1770800733043,247.2,9.168e-05,2]
[405097088,1770800733237,247.2,9.479e-05,2]
[405097089,1770800733426,247.2,9.79e-05,2]
[405097090,1770800733619,247.2,0.000101,2]
[405097091,1770800733822,247.2,0.00010411,2]
[405097092,1770800734010,247.2,0.00010722,2]
[405097093,1770800734204,247.2,0.00011033,2]
[405097094,1770800734401,247.2,0.00011344,2]
[405097095,1770800734598,247.2,0.00011654,2]
[405097096,1770800734858,247.2,0.00011965,2]
[405097097,1770800736133,832.0,0.00035616,120]
[405097109,1770800768401,833.0,0.00035616,120]
[405097115,1770800991736,832.0,0.00035616,120]
[405097116,1770801006384,832.0,0.00035616,120]
[405097118,1770801008998,832.0,0.00035616,120]
[405097119,1770801031606,832.0,0.00035616,120]
[405097120,1770801031814,-247.2,0.00012276,2]
[405097121,1770801031824,-265.21400284,0.0001242,2]
[405097122,1770801031834,-2636.52,0.00012434,2]
[405097123,1770801031844,-1535.18937536,0.0001252,2]
[405097124,1770801031853,-247.2,0.00012587,2]
[405097125,1770801031863,-247.2,0.00012898,2]
[405097126,1770801031872,-247.2,0.00013208,2]
[405097127,1770801031882,-247.2,0.00013519,2]
[405097128,1770801031892,-1586.49268555,0.00013541,2]
[405097129,1770801031901,-247.2,0.0001383,2]
[405097130,1770801031911,-247.2,0.00014141,2]
[405097131,1770801031921,-207.0,0.00014438,2]
[405097132,1770801031932,-247.2,0.00014452,2]
[405097133,1770801031942,-1637.79599575,0.00014562,2]
[405097134,1770801031952,-247.2,0.00014762,2]
[405097135,1770801031961,-2178.36,0.00014849,2]
[405097136,1770801031971,-199.9,0.00014958,2]
[405097137,1770801031980,-1852.42,0.00015122,2]
[405097138,1770801031990,-500.0,0.0001525,2]
[405097139,1770801031999,-250.0,0.00015309,2]
[405097140,1770801032008,-166.66,0.00015346,2]
[405097141,1770801032018,-500.0,0.00015346,2]
[405097142,1770801032027,-500.0,0.00015346,2]
[405097143,1770801032037,-500.0,0.00015346,2]
[405097144,1770801032047,-2370.77836653,0.00015467,2]
[405097145,1770801032056,-188.04530105,0.00015467,2]
[405097146,1770801032070,-1712.35,0.00015512,2]
[405097147,1770801032092,-1689.09930595,0.00015583,2]
[405097148,1770801032113,-1196.14715006,0.00015602,2]
[405097149,1770801032150,-670.69702774,0.00015602,2]
[405097150,1770801032174,-11.1958222,0.00015602,2]
[405097151,1770801032196,-11310.34,0.00015632,2]
[405097152,1770801032219,-166.66,0.00015669,2]
[405097153,1770801032241,-150.75,0.0001567,2]
[405097154,1770801032263,-900.0,0.0001567,2]
[405097155,1770801032285,-11270.0,0.00015679,2]
[405097156,1770801032307,-2370.77836653,0.00015737,2]
[405097157,1770801032332,-150.0,0.00015782,2]
[405097158,1770801032354,-3240.0,0.00015928,2]
[405097159,1770801032376,-587.338,0.00015992,2]
[405097160,1770801032397,-166.66,0.00015992,2]
[405097161,1770801032418,-2370.77836653,0.00016008,2]
[405097162,1770801032429,-151.0,0.00016076,2]
[405097163,1770801032439,-151.0,0.00016076,2]
[405097164,1770801032448,-151.0,0.00016076,2]
[405097165,1770801032458,-151.0,0.00016076,2]
[405097166,1770801032467,-151.0,0.00016076,2]
[405097167,1770801032477,-151.0,0.00016076,2]
[405097168,1770801032486,-151.0,0.00016076,2]
[405097169,1770801032496,-151.0,0.00016076,2]
[405097170,1770801032506,-151.0,0.00016076,2]
[405097171,1770801032515,-151.0,0.00016076,2]
[405097172,1770801032524,-151.0,0.00016076,2]
[405097173,1770801032534,-151.0,0.00016076,2]
[405097174,1770801032543,-151.0,0.00016076,2]
[405097175,1770801032553,-151.0,0.00016076,2]
[405097176,1770801032562,-151.0,0.00016076,2]
[405097177,1770801032571,-151.0,0.00016076,2]
[405097178,1770801032580,-151.0,0.00016076,2]
[405097179,1770801032589,-151.0,0.00016076,2]
[405097180,1770801032599,-151.0,0.00016076,2]
[405097181,1770801032608,-151.0,0.00016076,2]
[405097182,1770801032618,-500.0,0.00016076,2]
[405097183,1770801032627,-686.94585481,0.00016082,2]
[405097184,1770801032637,-264.91424637,0.00016082,2]
[405097185,1770801032647,-500.0,0.00016085,2]
[405097186,1770801032656,-500.0,0.00016085,2]
[405097187,1770801032665,-500.0,0.00016085,2]
[405097188,1770801032674,-500.0,0.00016085,2]
[405097189,1770801032684,-500.0,0.00016085,2]
[405097190,1770801032693,-500.0,0.00016085,2]
[405097191,1770801032702,-500.0,0.00016085,2]
[405097192,1770801032712,-500.0,0.00016085,2]
[405097193,1770801032721,-500.0,0.00016085,2]
[405097194,1770801032731,-98240.53892739,0.000162,2]
[405097195,1770801032741,-250.0,0.00016217,2]
[405097196,1770801032750,-250.0,0.00016217,2]
[405097197,1770801032761,-250.0,0.00016217,2]
[405097198,1770801032771,-250.0,0.00016217,2]
[405097199,1770801032780,-250.0,0.00016217,2]
[405097200,1770801032790,-262.73598838,0.00016217,2]
[405097201,1770801032799,-500.0,0.00016217,2]
[405097202,1770801032809,-250.0,0.00016217,2]
[405097203,1770801032818,-500.0,0.00016217,2]
[405097204,1770801032827,-250.0,0.00016217,2]
[405097205,1770801032836,-500.0,0.00016217,2]
[405097206,1770801032846,-250.0,0.00016217,2]
[405097207,1770801032856,-500.0,0.00016217,2]
[405097208,1770801032865,-250.0,0.00016217,2]
[405097209,1770801032875,-500.0,0.00016217,2]
[405097210,1770801032885,-260.23349697,0.00016217,2]
[405097211,1770801032895,-500.0,0.00016217,2]
[405097212,1770801032905,-448.42107791,0.00016217,2]
[405097213,1770801032915,-893.97,0.00016234,2]
[405097214,1770801032925,-2370.77836653,0.00016278,2]
[405097215,1770801032935,-1712.35,0.00016287,2]
[405097216,1770801032945,-166.66,0.00016315,2]
[405097217,1770801032954,-171.88660489,0.0001635,2]
[405097218,1770801032964,-2388.75446213,0.0001652,2]
[405097219,1770801032974,-264.91424636,0.00016537,2]
[405097220,1770801032983,-2370.77836653,0.00016548,2]
[405097221,1770801032994,-150.96601067,0.00016549,2]
[405097222,1770801033003,-3027.18804543,0.00016578,2]
[405097223,1770801033013,-166.66,0.00016639,2]
[405097224,1770801033023,-245.85501438,0.00016657,2]
[405097225,1770801033033,-192.86451404,0.00016657,2]
[405097226,1770801033043,-225.48317433,0.00016665,2]
[405097227,1770801033052,-500.0,0.00016677,2]
[405097228,1770801033061,-500.0,0.00016677,2]
[405097229,1770801033072,-596.04918281,0.00016677,2]
[405097230,1770801033081,-500.0,0.00016677,2]
[405097231,1770801033091,-500.0,0.00016677,2]
[405097232,1770801033101,-504.73417313,0.00016677,2]
[405097233,1770801033111,-380.3216415,0.00016678,2]
[405097234,1770801033120,-164.9115926,0.00016678,2]
[405097235,1770801033130,-92051.33222217,0.00016678,2]
[405097236,1770801033146,-230449.19209987,0.00016678,2]
[405097237,1770801033157,-84988.28489366,0.00016678,2]
[405097238,1770801033167,-76487.236349,0.00016678,2]
[405097239,1770801033176,-10145.4584478,0.00016678,2]
[405097240,1770801033185,-14256.3617843,0.00016678,2]
[405097241,1770801033197,-41274.9764482,0.00016678,2]
[405097242,1770801033207,-500.25,0.00016782,2]
[405097243,1770801033217,-176.19,0.000168,2]
[405097244,1770801033226,-2370.77836653,0.00016819,2]
[405097245,1770801033236,-278.0,0.00016879,2]
[405097246,1770801033246,-245.4684463,0.0001692,2]
[405097247,1770801033256,-1551.74,0.00016945,2]
[405097248,1770801033265,-166.66,0.00016962,2]
[405097249,1770801033275,-405.0,0.00016974,2]
[405097250,1770801033285,-264.91424636,0.00016991,2]
[405097251,1770801033294,-10000.0,0.00017,2]
[405097252,1770801033304,-900.0,0.0001704,2]
[405097253,1770801033314,-1712.35,0.00017063,2]
[405097254,1770801033323,-2370.77836653,0.00017089,2]
[405097255,1770801033332,-3027.18804537,0.00017125,2]
[405097256,1770801033342,-5160.1334538,0.00017139,2]
[405097257,1770801033357,-150.75,0.00017237,2]
[405097258,1770801033366,-1213.019,0.00017304,2]
[405097259,1770801033376,-918.0,0.00017304,2]
[405097260,1770801033386,-2449.0,0.00017304,2]
[405097261,1770801033395,-5966.0,0.00017304,2]
[405097262,1770801033405,-405.0,0.00017356,2]
[405097263,1770801033414,-2370.77836653,0.00017359,2]
[405097264,1770801033425,-200.0,0.00017432,2]
[405097265,1770801033435,-264.91424636,0.00017446,2]
[405097266,1770801033444,-166.67,0.00017482,2]
[405097267,1770801033453,-405.0,0.00017549,2]
[405097268,1770801033463,-368.79128323,0.000176,2]
[405097269,1770801033472,-1791.70592635,0.00017625,2]
[405097270,1770801033481,-2370.77836653,0.0001763,2]
[405097271,1770801033491,-2604.41189896,0.0001764,2]
[405097272,1770801033500,-14684.977063,0.00017641,2]
[405097273,1770801033510,-3027.18804537,0.00017672,2]
[405097274,1770801033519,-504.0,0.00017721,2]
[405097275,1770801033529,-5000.0,0.00017808,2]
[405097276,1770801033538,-1712.35,0.00017839,2]
[405097277,1770801033547,-200.0,0.00017855,2]
[405097278,1770801033556,-200.0,0.00017856,2]
[405097279,1770801033566,-500.0,0.00017873,2]
[405097280,1770801033575,-500.0,0.00017873,2]
[405097281,1770801033584,-264.91424636,0.000179,2]
[405097282,1770801033594,-4824.88490254,0.000179,2]
[405097283,1770801033603,-2370.77836653,0.000179,2]
[405097284,1770801033613,-2492.20274722,0.000179,2]
[405097285,1770801033622,-192.9439084,0.000179,2]
[405097286,1770801033632,-155.0,0.00017906,2]
[405097287,1770801033642,-150.0,0.00017907,2]
[405097288,1770801033651,-150.0,0.00017907,2]
[405097289,1770801033661,-150.0,0.00017907,2]
[405097290,1770801033670,-150.0,0.00017907,2]
[405097291,1770801033679,-150.0,0.00017907,2]
[405097292,1770801033689,-150.0,0.00017907,2]
[405097293,1770801033699,-3487.0,0.00017907,2]
[405097294,1770801033708,-620.018,0.00017907,2]
[405097295,1770801033717,-1337.0,0.00017907,2]
[405097296,1770801033727,-150.887,0.00017907,2]
[405097297,1770801033739,-1273.0,0.00017907,2]
[405097298,1770801033749,-168.0,0.00017929,2]
[405097299,1770801033759,-392.0,0.0001796,2]
[405097300,1770801033768,-177.01848,0.00017961,2]
[405097301,1770801033778,-177.01848,0.00017961,2]
[405097302,1770801033787,-177.01848,0.00017961,2]
[405097303,1770801033797,-177.01848,0.00017961,2]
[405097304,1770801033807,-31184.64829531,0.00017961,2]
[405097305,1770801033821,-4442.63241699,0.00017961,2]
[405097306,1770801033837,-4220.17642033,0.00017961,2]
[405097307,1770801033846,-500.0,0.00017973,2]
[405097308,1770801033856,-500.0,0.00017973,2]
[405097309,1770801033865,-53.46296765,0.00017973,2]
[405097310,1770801033880,-108.02435577,0.00017973,2]
[405097311,1770801033890,-377.4614152,0.00017973,2]
[405097312,1770801033902,-368.82673096,0.00017973,2]
[405097313,1770801033914,-131.17326904,0.00017973,2]
[405097314,1770801033924,-500.0,0.00017973,2]
[405097315,1770801033934,-22.77485188,0.00017973,2]
[405097316,1770801033945,-289.88510599,0.00017973,2]
[405097317,1770801038021,-250.0,0.00016217,2]
[405097318,1770801038030,-250.0,0.00016217,2]
[405097319,1770801038040,-250.0,0.00016217,2]
[405097320,1770801038050,-290.72301138,0.00016217,2]
[405097321,1770801038061,-6590.0,0.00017304,2]
[405097322,1770801038071,-187.34004213,0.00017973,2]
[405097323,1770801038080,-277.78495624,0.00017973,2]
[405097324,1770801038090,-500.0,0.00017973,2]
[405097325,1770801038100,-300.0,0.00017999,2]
[405097326,1770801038110,-168.58061535,0.00017999,2]
[405097327,1770801038120,-201.55974169,0.00017999,2]
[405097328,1770801038129,-413.2752355,0.00017999,2]
[405097329,1770801038140,-244.35830306,0.00017999,2]
[405097330,1770801038150,-500.0,0.00017999,2]
[405097331,1770801038160,-500.0,0.00017999,2]
[405097332,1770801038170,-500.0,0.00017999,2]
[405097333,1770801038180,-276.78215364,0.00017999,2]
[405097334,1770801038193,-223.21784636,0.00017999,2]
[405097335,1770801038203,-500.0,0.00017999,2]
[405097336,1770801038213,-500.0,0.00017999,2]
[405097337,1770801038223,-500.0,0.00017999,2]
[405097338,1770801038233,-500.0,0.00017999,2]
[405097339,1770801038243,-500.0,0.00017999,2]
[405097340,1770801038254,-519.42833144,0.00017999,2]
[405097341,1770801038263,-500.0,0.00017999,2]
[405097342,1770801038273,-500.0,0.00017999,2]
[405097343,1770801038283,-500.0,0.00017999,2]
[405097344,1770801038292,-500.0,0.00017999,2]
[405097346,1770801038302,-500.0,0.00017999,2]
[405097348,1770801038312,-500.0,0.00017999,2]
[405097350,1770801038321,-500.0,0.00017999,2]
[405097352,1770801038331,-500.0,0.00017999,2]
[405097354,1770801038340,-500.0,0.00017999,2]
[405097356,1770801038354,-500.0,0.00017999,2]
[405097358,1770801038364,-144.16086827,0.00017999,2]
[405097418,1770801038963,-14.1036984,0.00017999,2]
[405097420,1770801038973,-500.0,0.00017999,2]
[405097422,1770801038982,-500.0,0.00017999,2]
[405097424,1770801038992,-500.0,0.00017999,2]
[405097426,1770801039002,-600.0,0.00017999,2]
[405097428,1770801039012,-500.0,0.00017999,2]
[405097430,1770801039022,-2003.40916573,0.00018,2]
[405097432,1770801039034,-24545.04712779,0.00018,2]
[405097489,1770801039697,832.0,0.00035616,120]
[405097522,1770801039979,-342.26322073,0.000179,2]
[405097524,1770801039991,-475.80353924,0.000179,2]
[405097527,1770801040003,-38.63438851,0.000179,2]
[405097529,1770801040013,-551.45737079,0.00018,2]
[405097531,1770801040025,-730.40003244,0.00018,2]
[405097533,1770801040037,-500.0,0.00018,2]
[405097562,1770801040297,-813662.27963526,0.00018,2]
[405097564,1770801040309,-3863.96363344,0.00018,2]
[405097567,1770801040320,-523.34287504,0.00018,2]
[405097631,1770801043588,-861.00346929,0.00018,2]
[405097633,1770801044447,-974.74442038,0.00018,2]
[405097634,1770801044504,-500.0,0.00018,2]
[405097635,1770801044645,832.0,0.00035616,120]
[405097652,1770801045880,-12083.7123,0.00018,2]
[405097695,1770801076569,832.0,0.00035616,120]
[405097696,1770801082731,833.0,0.00035616,120]
[405097700,1770801618193,283.87595038,0.00035616,120]
[405097701,1770801796797,500.0,0.00028105,120]
[405097702,1770801797199,500.0,0.00031608,120]
[405097744,1770802232254,-5000.00815921,0.000162,5]
[405097745,1770802232264,-153.4846,0.00016477,2]
[405097746,1770802232274,-168.76,0.000165,2]
[405097747,1770802232283,-1367.74724079,0.00016577,2]
[405097749,1770802232311,-374.83955921,0.00016577,2]
[405097750,1770802232321,-302.08048998,0.00016589,2]
[405097753,1770802232399,-197.91951002,0.00016589,2]
[405097754,1770802232410,-300.0,0.00016645,2]
[405097755,1770802232420,-730.79017043,0.00016646,2]
[405097756,1770802232431,-2026.32982957,0.00016646,2]
[405097757,1770802232441,-200.0,0.00016848,2]
[405097758,1770802232450,-1000.0,0.00016852,2]
[405097759,1770802232459,-200.0,0.00016893,2]
[405097760,1770802232469,-2500.0,0.000169,2]
[405097761,1770802232478,-151.0,0.00016997,2]
[405097762,1770802232488,-151.0,0.00016997,2]
[405097763,1770802232498,-500.0,0.00016999,2]
[405097764,1770802232508,-286822.84613694,0.00017,2]
[405097765,1770802232517,-169.08628631,0.00017093,2]
[405097766,1770802232527,-166.66,0.00017193,2]
[405097767,1770802232536,-11854.19451509,0.00017489,2]
[405097768,1770802232545,-181.45172836,0.00017489,2]
[405097769,1770802232555,-1661.46849814,0.00017489,2]
[405097770,1770802232565,-169.08628631,0.00017497,2]
[405097771,1770802232574,-177.33879809,0.00017499,2]
[405097772,1770802232584,-4125.012,0.000175,2]
[405097773,1770802232593,-4882.1969,0.000175,2]
[405097774,1770802232602,-11854.19451501,0.00017535,2]
[405097775,1770802232611,-11854.19451501,0.0001758,2]
[405097776,1770802232621,-500.0,0.00017588,2]
[405097777,1770802232630,-289.29266485,0.00017588,2]
[405097778,1770802232639,-563.59983201,0.00017588,2]
[405097779,1770802232649,-171.05081215,0.00017588,2]
[405097780,1770802232658,-12264.29184245,0.00017589,2]
[405097793,1770802240507,-500.0,0.00016999,2]
[405097794,1770802240517,-10159.1076,0.00017489,2]
[405097795,1770802240527,-803003.17203526,0.00017589,2]
[405097831,1770802439943,168.0,0.00035616,120]
[405097832,1770802542744,174.09,0.00024993,120]
[405097834,1770802803677,283.0,0.00015862,2]
[405097852,1770803412408,-200.0,0.00015562,2]
[405097854,1770803432233,-300.0,0.00015562,2]
[405097855,1770803432243,-155.44038952,0.00015692,2]
[405097856,1770803432253,-163.68,0.00015698,2]
[405097857,1770803432263,-246.66,0.000157,2]
[405097858,1770803432273,-1513.68398771,0.00015784,2]
[405097859,1770803432286,-670.50807902,0.00015784,2]
[405097860,1770803432341,-159.21793327,0.00015784,2]
[405097861,1770803432351,-293.06450913,0.00015792,2]
[405097862,1770803432361,-164.44,0.000158,2]
[405097863,1770803432370,-166.66,0.00015862,2]
[405097864,1770803432380,-2012.56408786,0.00015933,2]
[405097865,1770803432390,-257.447609,0.00016,2]
[405097866,1770803432400,-166.66,0.00016196,2]
[405097867,1770803432416,-974.56,0.00016214,2]
[405097868,1770803432425,-300.0,0.00016315,2]
[405097869,1770803432435,-1151.0,0.00016315,2]
[405097870,1770803432444,-3240.0,0.00016316,2]
[405097871,1770803432453,-9167.32832638,0.00016347,2]
[405097873,1770803432462,-810.21348926,0.00016347,2]
[405097875,1770803432472,-825.07353291,0.00016347,2]
[405097878,1770803432482,-181.0572785,0.00016347,2]
[405097882,1770803432491,-712.05414044,0.00016347,2]
[405097885,1770803432500,-188.27841096,0.00016436,2]
[405097888,1770803432510,-151.0,0.00016443,2]
[405097891,1770803432520,-183.0,0.00016445,2]
[405097893,1770803432529,-194.67099102,0.00016445,2]
[405097895,1770803432538,-500.0,0.00016445,2]
[405097897,1770803432548,-232.79822345,0.00016445,2]
[405097899,1770803432557,-337.47811494,0.00016445,2]
[405097901,1770803432566,-500.0,0.00016445,2]
[405097902,1770803432576,-240.75619594,0.00016445,2]
[405097903,1770803432585,-441891.42918317,0.00016446,2]
[405097904,1770803432597,-508.0,0.00016446,2]
[405097905,1770803432609,-2376.22122188,0.00016446,2]
[405097906,1770803432624,-2040.75,0.00016446,2]
[405097908,1770803438427,-2197.1,0.00013412,2]
[405097909,1770803438437,-212.05272325,0.00016347,2]
[405097910,1770803438447,-2069.43455708,0.00016446,2]
[405097912,1770803440341,-258.47219737,0.00016446,2]
[405097913,1770803440709,-813662.27963526,0.00016446,2]
[405097952,1770803446376,-223.99975292,0.00016446,2]
[405097953,1770803446388,-286.1521236,0.00016446,2]
[405098087,1770803538307,3315.61632834,0.000356,120]
[405098091,1770803590146,157.54,9.443e-05,2]
[405098097,1770803955512,-150.0,0.0001259,2]
[405098099,1770804283532,1201.85190849,0.00012018,2]
[405098100,1770804322871,-7.54,0.0001259,2]
[405098103,1770804350693,-542.46,0.00012828,2]
[405098131,1770804631318,-383.06302283,0.00013849,2]
[405098132,1770804631330,-155.45927141,0.00013927,2]
[405098133,1770804631340,-1033.44187205,0.00014062,2]
[405098134,1770804631369,-994.88176241,0.00014062,2]
[405098135,1770804631381,-26.31311439,0.00014062,2]
[405098136,1770804631390,-250.0,0.00014111,2]
[405098137,1770804631400,-500.0,0.00014111,2]
[405098138,1770804631409,-23.68688561,0.00014111,2]
[405098139,1770804631481,-338.18558243,0.00014111,2]
[405098140,1770804631494,-458.992652,0.00014587,2]
[405098141,1770804631504,-200.0,0.00014962,2]
[405098142,1770804631514,-1000.0,0.00015105,2]
[405098143,1770804631525,-200.0,0.00015133,2]
[405098144,1770804631535,-300.0,0.00015186,2]
[405098145,1770804631544,-2303.06762914,0.00015187,2]
[405098146,1770804631554,-247.71,0.00015259,2]
[405098147,1770804631564,-300.0,0.00015334,2]
[405098148,1770804631574,-150.0,0.00015345,2]
[405098149,1770804631583,-1203.16,0.00015345,2]
[405098150,1770804631593,-150.99,0.00015345,2]
[405098152,1770804631602,-999.99,0.00015345,2]
[405098155,1770804631613,-9999.99,0.00015345,2]
[405098157,1770804631622,-4573.73,0.00015345,2]
[405098159,1770804631633,-9999.99,0.00015345,2]
[405098161,1770804631642,-1184.01,0.00015345,2]
[405098164,1770804631651,-311.22,0.00015345,2]
[405098167,1770804631661,-166.7,0.0001539,2]
[405098169,1770804631670,-280.86,0.0001558,2]
[405098172,1770804631679,-19999.99,0.00015738,2]
[405098175,1770804631688,-157.54,0.00015738,2]
[405098179,1770804631698,-968.4929004,0.00015896,2]
[405098182,1770804631708,-162.01657734,0.00015896,2]
[405098184,1770804631717,-2976.79772585,0.00015896,2]
[405098186,1770804631727,-209.13309471,0.00015936,2]
[405098188,1770804631736,-155.20645213,0.00015943,2]
[405098190,1770804631746,-577.67253323,0.00015945,2]
[405098192,1770804631755,-181.05727849,0.00015945,2]
[405098194,1770804631764,-158.56688422,0.00015946,2]
[405098196,1770804631775,-236.11873488,0.00015946,2]
[405098198,1770804631788,-1216.17741054,0.00015946,2]
[405098200,1770804631798,-8250.59549376,0.00015946,2]
[405098202,1770804631807,-2500.0,0.00015946,2]
[405098204,1770804631817,-603348.58532283,0.00015946,2]
[405098206,1770804631830,-1254.41808677,0.00015946,2]
[405098208,1770804631842,-3124.2367233,0.00015946,2]
[405098210,1770804631854,-885.66,0.00015946,2]
[405098212,1770804631867,-680.25,0.00015946,2]
[405098214,1770804637423,-202.43935989,0.00015945,2]
[405098215,1770804637433,-11732.67979659,0.00015946,2]
[405098216,1770804637445,-6103.65377534,0.00015946,2]
[405098217,1770804637476,-1903.39481042,0.00015946,2]